fUSD/lending_fUSD_20250417
["ID","MTS","AMOUNT","RATE_DAILY","PERIOD"]
[358234607,1744860645144,-787.71,0.00052054,120]
[358234608,1744860645153,-1140.99,0.00052054,120]
[358234609,1744860645162,-500.0,0.00052054,120]
[358234610,1744860645171,-500.0,0.00052054,120]
[358234611,1744860645181,-500.0,0.00052054,120]
[358234612,1744860645193,-1013.28,0.00052054,118]
[358234613,1744860645202,-500.0,0.00052054,120]
[358234614,1744860645212,-500.0,0.00052054,120]
[358234615,1744860645222,-500.0,0.00052054,120]
[358234616,1744860645232,-607.54,0.00052054,120]
[358234617,1744860645242,-588.53,0.00052054,120]
[358234618,1744860645251,-500.0,0.00052054,120]
[358234619,1744860645262,-1753.84,0.00052054,120]
[358234620,1744860645271,-2754.96,0.00052054,120]
[358234621,1744860645281,-500.0,0.00052054,120]
[358234622,1744860645290,-500.0,0.00052054,120]
[358234623,1744860645300,-806.63,0.00052054,120]
[358234624,1744860645309,-2000.0,0.00052054,120]
[358234625,1744860645318,-500.0,0.00052054,120]
[358234626,1744860645327,-645.15,0.00052054,120]
[358234627,1744860645336,-1809.48,0.00052054,120]
[358234628,1744860645347,-2589.1,0.00052054,120]
[358234629,1744860645356,-1540.85,0.00052054,120]
[358234630,1744860645366,-500.0,0.00052054,120]
[358234631,1744860645375,-500.0,0.00052054,120]
[358234632,1744860645384,-500.0,0.00052054,120]
[358234633,1744860645393,-500.0,0.00052054,120]
[358234634,1744860645402,-500.0,0.00052054,120]
[358234635,1744860645412,-500.0,0.00052054,120]
[358234636,1744860645421,-1248.96,0.00052054,120]
[358234637,1744860645430,-500.0,0.00052054,120]
[358234638,1744860645439,-897.19,0.00052054,120]
[358234639,1744860645448,-1455.52,0.00052054,120]
[358234640,1744860645456,-500.0,0.00052054,120]
[358234641,1744860645465,-500.0,0.00052054,120]
[358234642,1744860645474,-786.27,0.00052054,120]
[358234643,1744860645483,-728.06,0.00052054,120]
[358234644,1744860645492,-1240.6,0.00052054,120]
[358234645,1744860645501,-500.0,0.00052054,120]
[358234646,1744860645510,-1113.15,0.00052054,120]
[358234647,1744860645519,-500.0,0.00052054,120]
[358234648,1744860645529,-500.0,0.00052054,120]
[358234649,1744860645537,-2384.77,0.00052054,120]
[358234650,1744860645547,-836.03,0.00052054,120]
[358234651,1744860645556,-304.75225713,0.00052054,120]
[358234652,1744860645565,-500.0,0.00052054,120]
[358234654,1744860645574,-503.12,0.00052054,120]
[358234656,1744860645583,-500.82,0.00052054,120]
[358234657,1744860645592,-500.0,0.00052054,120]
[358234659,1744860645600,-536.95,0.00052054,120]
[358234660,1744860645607,-657.48,0.00052054,120]
[358234661,1744860645614,-500.0,0.00052054,120]
[358234662,1744860645621,-500.0,0.00052054,120]
[358234663,1744860645630,-975.33,0.00052054,120]
[358234664,1744860645639,-902.78,0.00052054,120]
[358234665,1744860645647,-500.0,0.00052054,120]
[358234666,1744860645657,-500.0,0.00052054,120]
[358234667,1744860645667,-500.0,0.00052054,120]
[358234668,1744860645677,-500.0,0.00052054,120]
[358234669,1744860645687,-708.51,0.00052054,120]
[358234670,1744860645697,-554.78659122,0.00052054,120]
[358234671,1744860645707,-578.92,0.00052054,120]
[358234672,1744860645717,-1080.06,0.00052054,120]
[358234674,1744860645727,-1254.23,0.00052054,120]
[358234676,1744860645737,-500.0,0.00052054,120]
[358234677,1744860645747,-500.0,0.00052054,120]
[358234678,1744860645757,-500.0,0.00052054,120]
[358234679,1744860645767,-500.0,0.00052054,120]
[358234680,1744860645777,-500.0,0.00052054,120]
[358234681,1744860645788,-500.0,0.00052054,120]
[358234682,1744860645797,-583.71,0.00052054,120]
[358234683,1744860645807,-500.0,0.00052054,120]
[358234684,1744860645818,-500.0,0.00052054,120]
[358234685,1744860645827,-738.01,0.00052054,120]
[358234686,1744860645837,-556.78,0.00052054,120]
[358234687,1744860645849,-503.42595301,0.00052054,120]
[358234688,1744860645858,-500.0,0.00052054,120]
[358234689,1744860645868,-500.0,0.00052054,2]
[358234690,1744860645880,-530.41871699,0.00052054,120]
[358234691,1744860645890,-811.92,0.00052054,120]
[358234692,1744860645900,-745.22,0.00052054,120]
[358234693,1744860645909,-1194.91,0.00052054,120]
[358234694,1744860645919,-1317.08,0.00052054,120]
[358234695,1744860645929,-1445.97,0.00052054,120]
[358234696,1744860645939,-514.29067209,0.00052054,120]
[358234697,1744860645949,-500.0,0.00052054,120]
[358234698,1744860645959,-500.0,0.00052054,120]
[358234699,1744860645969,-500.0,0.00052054,120]
[358234700,1744860645978,-500.0,0.00052054,120]
[358234701,1744860645988,-500.0,0.00052054,120]
[358234702,1744860645997,-411.17230505,0.00052054,120]
[358234703,1744860646007,-266.39536749,0.00052054,120]
[358234704,1744860646017,-500.0,0.00052054,120]
[358234705,1744860646027,-500.0,0.00052054,120]
[358234706,1744860646038,-500.0,0.00052055,120]
[358234707,1744860646048,-500.0,0.00052055,30]
[358234708,1744860646058,-500.0,0.00052055,30]
[358234709,1744860646068,-150.0,0.00052055,30]
[358234710,1744860646078,-150.0,0.00052055,30]
[358234711,1744860646087,-150.0,0.00052055,30]
[358234712,1744860646097,-500.0,0.00052055,30]
[358234713,1744860646107,-500.0,0.00052055,30]
[358234714,1744860646117,-150.0,0.00052055,30]
[358234715,1744860646127,-150.0,0.00052055,30]
[358234716,1744860646136,-215.56486319,0.00052055,30]
[358234717,1744860646146,-150.0,0.00052055,30]
[358234718,1744860646156,-2508.0,0.00052055,60]
[358234719,1744860646165,-500.0,0.00052055,60]
[358234720,1744860646176,-500.0,0.00052055,60]
[358234721,1744860646186,-500.0,0.00052055,30]
[358234723,1744860646197,-500.0,0.00052055,30]
[358234725,1744860646207,-150.059592,0.00052055,30]
[358234727,1744860646217,-500.0,0.00052055,30]
[358234729,1744860646227,-150.0,0.00052055,2]
[358234731,1744860646237,-500.0,0.00052055,30]
[358234733,1744860646247,-154.51759917,0.00052055,30]
[358234735,1744860646257,-500.0,0.00052055,30]
[358234737,1744860646267,-299.74,0.00052062,30]
[358234739,1744860646278,-447.68,0.00052062,30]
[358234741,1744860646287,-150.0,0.00052062,30]
[358234743,1744860646297,-150.0,0.00052062,30]
[358234745,1744860646307,-150.0,0.00052062,30]
[358234747,1744860646317,-16600.0179625,0.00052092,4]
[358234749,1744860646326,-150.0,0.00052102,30]
[358234751,1744860646336,-332.73,0.00052102,30]
[358234753,1744860646347,-447.95,0.00052102,30]
[358234755,1744860646357,-150.0,0.00052102,30]
[358234757,1744860646367,-150.0,0.00052102,30]
[358234758,1744860646376,-283.59,0.00052102,30]
[358234760,1744860646386,-349.81,0.00052102,30]
[358234763,1744860646396,-160.65,0.00052102,30]
[358234765,1744860646406,-150.0,0.00052102,30]
[358234767,1744860646415,-160.65,0.00052102,30]
[358234768,1744860646425,-160.65,0.00052102,30]
[358234771,1744860646434,-160.65,0.00052102,30]
[358234772,1744860646444,-329.4,0.00052102,30]
[358234774,1744860646454,-160.65,0.00052118,30]
[358234776,1744860646463,-160.65,0.00052118,30]
[358234778,1744860646473,-447.95,0.00052118,30]
[358234780,1744860646483,-150.0,0.00052118,30]
[358234782,1744860646492,-160.65,0.00052118,30]
[358234784,1744860646501,-150.0,0.00052118,30]
[358234786,1744860646511,-150.0,0.00052118,30]
[358234788,1744860646521,-349.81,0.00052118,30]
[358234790,1744860646530,-150.0,0.00052118,30]
[358234792,1744860646539,-447.95,0.00052118,30]
[358234793,1744860646548,-150.0,0.00052118,30]
[358234795,1744860646558,-160.65,0.00052118,30]
[358234797,1744860646567,-349.81,0.00052118,30]
[358234799,1744860646576,-150.0,0.00052118,30]
[358234801,1744860646586,-150.0,0.00052118,30]
[358234803,1744860646596,-447.95,0.00052118,30]
[358234805,1744860646605,-1021.0,0.00052118,30]
[358234807,1744860646615,-286.12,0.00052118,30]
[358234809,1744860646625,-160.65,0.00052118,30]
[358234811,1744860646635,-349.81,0.00052118,30]
[358234813,1744860646645,-150.0,0.00052118,30]
[358234815,1744860646655,-150.0,0.00052118,30]
[358234817,1744860646665,-150.0,0.00052118,30]
[358234819,1744860646674,-447.95,0.00052118,30]
[358234821,1744860646683,-160.65,0.00052118,30]
[358234823,1744860646693,-150.0,0.00052118,30]
[358234825,1744860646703,-150.0,0.00052118,30]
[358234827,1744860646712,-150.0,0.00052118,30]
[358234829,1744860646722,-349.81,0.00052118,30]
[358234831,1744860646731,-150.0,0.00052118,30]
[358234833,1744860646740,-447.95,0.00052118,30]
[358234835,1744860646749,-150.0,0.00052118,30]
[358234837,1744860646759,-160.65,0.00052118,30]
[358234839,1744860646768,-150.0,0.00052118,30]
[358234840,1744860646777,-349.81,0.00052118,30]
[358234842,1744860646787,-150.0,0.00052118,30]
[358234843,1744860646797,-150.0,0.00052118,30]
[358234844,1744860646806,-150.0,0.00052118,30]
[358234845,1744860646816,-447.95,0.00052118,30]
[358234846,1744860646826,-160.65,0.00052118,30]
[358234847,1744860646835,-150.0,0.00052118,30]
[358234848,1744860646846,-349.81,0.00052118,30]
[358234849,1744860646856,-150.0,0.00052118,30]
[358234850,1744860646866,-150.0,0.00052118,30]
[358234851,1744860646876,-447.95,0.00052118,30]
[358234852,1744860646886,-150.0,0.00052118,30]
[358234853,1744860646896,-150.0,0.00052118,30]
[358234854,1744860646906,-160.65,0.00052118,30]
[358234855,1744860646916,-349.81,0.00052118,30]
[358234856,1744860646925,-150.0,0.00052118,30]
[358234857,1744860646935,-150.0,0.00052118,30]
[358234858,1744860646944,-150.0,0.00052118,30]
[358234859,1744860646954,-160.65,0.00052118,30]
[358234860,1744860646965,-447.95,0.00052118,30]
[358234861,1744860646974,-150.0,0.00052118,30]
[358234862,1744860646983,-349.81,0.00052118,30]
[358234863,1744860646992,-150.0,0.00052118,30]
[358234864,1744860647002,-447.95,0.00052118,30]
[358234865,1744860647011,-150.0,0.00052118,30]
[358234866,1744860647021,-160.65,0.00052118,30]
[358234867,1744860647031,-150.0,0.00052118,30]
[358234868,1744860647040,-150.0,0.00052118,30]
[358234869,1744860647050,-349.81,0.00052118,30]
[358234870,1744860647060,-447.95,0.00052118,30]
[358234871,1744860647069,-160.65,0.00052118,30]
[358234872,1744860647079,-150.0,0.00052118,30]
[358234873,1744860647089,-349.81,0.00052118,30]
[358234874,1744860647098,-447.95,0.00052118,30]
[358234875,1744860647109,-160.65,0.00052118,30]
[358234876,1744860647119,-150.0,0.00052118,30]
[358234877,1744860647128,-150.0,0.00052118,30]
[358234878,1744860647138,-349.81,0.00052118,30]
[358234879,1744860647148,-804.29046208,0.00052137,15]
[358234880,1744860647158,-150.0,0.00052208,7]
[358234881,1744860647168,-566.73206728,0.00052228,29]
[358234882,1744860647178,-16600.0179625,0.00052298,4]
[358234883,1744860647189,-1000.0,0.000523,7]
[358234884,1744860647199,-24229.92016054,0.00052307,4]
[358234885,1744860649336,-153.0,0.00052013,60]
[358234886,1744860649347,-153.0,0.00052013,60]
[358234887,1744860649357,-153.0,0.00052013,60]
[358234888,1744860649368,-153.0,0.00052013,60]
[358234889,1744860649378,-153.0,0.00052013,60]
[358234890,1744860649388,-153.0,0.00052013,60]
[358234891,1744860649399,-153.0,0.00052013,60]
[358234892,1744860649409,-500.0,0.00052054,120]
[358234893,1744860649419,-500.0,0.00052054,120]
[358234894,1744860649429,-150.0,0.00052054,10]
[358234895,1744860649439,-601.93,0.00052054,120]
[358234896,1744860649449,-500.0,0.00052054,120]
[358234897,1744860649460,-447.95,0.00052118,30]
[358234898,1744860649470,-2049.45988913,0.00052307,4]
[358234899,1744860649483,-951.115,0.00052307,4]
[358234900,1744860649520,-151.0,0.0005046,30]
[358234901,1744860649531,-151.0,0.0005046,30]
[358234902,1744860649542,-495.97,0.00051118,30]
[358234903,1744860649552,-45.21339606,0.00052013,60]
[358234906,1744861448057,3724.502008,7.945e-05,2]
[358234907,1744861529386,150.58007017,0.0001,2]
[358234908,1744861646124,-158.31,0.00024932,2]
[358234909,1744861646146,-152.06007259,0.000334,2]
[358234910,1744861650083,-19.93992741,0.000334,2]
[358234911,1744861650105,-1404.72430437,0.000335,2]
[358234912,1744861751092,-151.0,0.00033495,2]
[358234913,1744861751113,-121.42910411,0.000335,2]
[358234927,1744861837989,-1473.84659152,0.000335,2]
[358234928,1744861837999,-153.39,0.000335,31]
[358234929,1744861838009,-153.39,0.000335,31]
[358234930,1744861838018,-151.0,0.00033801,2]
[358234931,1744861838027,-151.0,0.00033801,2]
[358234932,1744861838036,-151.0,0.00034001,2]
[358234933,1744861838046,-151.0,0.00034001,2]
[358234934,1744861838056,-150.0,0.00034548,10]
[358234935,1744861838066,-158.31,0.00036137,2]
[358234936,1744861838076,-250.0,0.0003685,2]
[358234937,1744861838086,-150.0,0.00037178,2]
[358234938,1744861838096,-203.1905,0.00037202,2]
[358234939,1744861838105,-153.39,0.000408,31]
[358234940,1744861838115,-153.39,0.000408,31]
[358234941,1744861838125,-153.39,0.000408,31]
[358234942,1744861838134,-153.39,0.000408,31]
[358234943,1744861838144,-189.86536275,0.000408,30]
[358234944,1744861838153,-150.0,0.00041,14]
[358234945,1744861838163,-203.1905,0.00043801,2]
[358234946,1744861838173,-300.0,0.00044,120]
[358234947,1744861838183,-153.82,0.00044122,2]
[358234948,1744861838192,-117.23704569,0.00044122,5]
[358234949,1744861838306,-182.76295431,0.00044122,5]
[358234950,1744861838316,-1068.0,0.00044124,30]
[358234951,1744861838325,-1068.0,0.00044124,30]
[358234952,1744861838335,-601.33620619,0.00044124,30]
[358234953,1744861838346,-466.66379381,0.00044124,30]
[358234954,1744861838355,-226.08620606,0.00044124,30]
[358234964,1744861840093,-931.35734695,0.00044124,30]
[358234965,1744861840103,-160.0,0.00044124,2]
[358234966,1744861840112,-300.0,0.00045406,120]
[358234967,1744861840121,-1068.0,0.0004544,30]
[358234968,1744861840131,-150.0,0.00045589,10]
[358234969,1744861840140,-871.02,0.00046349,2]
[358234970,1744861840149,-300.0,0.00046813,120]
[358234971,1744861840159,-158.31,0.00047342,2]
[358234972,1744861840169,-1068.0,0.00047831,30]
[358234973,1744861840423,-1000.0,0.00048,120]
[358234974,1744861840435,-500.0,0.00048,120]
[358234975,1744861840445,-150.32,0.00048025,2]
[358234976,1744861840455,-153.39,0.000481,45]
[358234977,1744861840465,-153.39,0.000481,45]
[358234978,1744861840474,-153.39,0.000481,45]
[358234979,1744861840484,-153.39,0.000481,45]
[358234980,1744861840493,-300.0,0.00048219,120]
[358234981,1744861840503,-200.0,0.00048266,7]
[358234982,1744861840512,-3708.21,0.00048266,2]
[358234983,1744861840521,-23900.0,0.00048266,2]
[358234984,1744861840531,-180.66,0.00048266,2]
[358234985,1744861840540,-2000.0,0.00048266,120]
[358234986,1744861840549,-608.69,0.00048266,2]
[358234987,1744861840563,-1000.0,0.00048266,2]
[358234989,1744861840572,-910.59,0.00048266,2]
[358234991,1744861840584,-910.59,0.00048279,2]
[358234993,1744861840594,-910.59,0.00048292,2]
[358234995,1744861840605,-910.59,0.00048304,2]
[358234997,1744861840614,-910.59,0.00048317,2]
[358234999,1744861840623,-910.59,0.0004833,2]
[358235001,1744861840634,-910.59,0.00048343,2]
[358235003,1744861840644,-237.61,0.00048351,120]
[358235005,1744861840653,-910.59,0.00048355,2]
[358235007,1744861840663,-910.59,0.00048368,2]
[358235009,1744861840672,-910.59,0.00048381,2]
[358235011,1744861840681,-910.59,0.00048393,2]
[358235013,1744861840690,-910.59,0.00048406,2]
[358235015,1744861840699,-910.59,0.00048419,2]
[358235017,1744861840709,-910.59,0.00048432,2]
[358235019,1744861840719,-910.59,0.00048444,2]
[358235021,1744861840728,-910.59,0.00048457,2]
[358235023,1744861840737,-910.59,0.0004847,2]
[358235024,1744861840746,-910.59,0.00048482,2]
[358235025,1744861840756,-910.59,0.00048495,2]
[358235026,1744861840765,-910.59,0.00048508,2]
[358235028,1744861840774,-871.02,0.00048612,2]
[358235029,1744861840784,-500.0,0.00049,120]
[358235030,1744861840794,-512.75659386,0.00049,120]
[358235031,1744861840803,-1681.7679119,0.0004915,4]
[358235032,1744861840812,-477.18194399,0.000493,2]
[358235033,1744861840822,-500.0,0.00049315,120]
[358235034,1744861840833,-1004.66025359,0.00049406,120]
[358235035,1744861840842,-746.87,0.00049611,2]
[358235036,1744861840851,-259.79471503,0.00049625,120]
[358235037,1744861840882,-40.20528497,0.00049625,120]
[358235038,1744861840891,-150.01,0.00049636,120]
[358235039,1744861840902,-400.0,0.0005,120]
[358235040,1744861840912,-500.0,0.0005,120]
[358235041,1744861840922,-500.0,0.0005,120]
[358235042,1744861840933,-1000.0,0.0005001,2]
[358235043,1744861840944,-150.0,0.0005006,7]
[358235044,1744861840955,-182.77,0.00050191,120]
[358235045,1744861840964,-176.86,0.00050229,2]
[358235046,1744861840974,-1814.0,0.000503,7]
[358235047,1744861840983,-1068.0,0.00050349,30]
[358235048,1744861840992,-500.0,0.00050438,2]
[358235049,1744861841002,-1081.36999958,0.0005068,2]
[358235050,1744861841031,-1545.24369994,0.0005068,2]
[358235051,1744861841050,-1081.59630048,0.0005068,2]
[358235052,1744861841059,-150.0,0.00050815,7]
[358235053,1744861841068,-871.02,0.00050876,2]
[358235054,1744861841077,-150.0,0.00050957,7]
[358235055,1744861841086,-150.0,0.00050959,7]
[358235056,1744861841095,-150.0,0.00050997,7]
[358235057,1744861841103,-500.0,0.00051,120]
[358235058,1744861841113,-793.45,0.00051022,30]
[358235059,1744861841122,-450.95,0.00051022,30]
[358235060,1744861841131,-528.09,0.00051022,30]
[358235061,1744861841140,-150.0,0.00051026,7]
[358235062,1744861841149,-154.05,0.00051141,30]
[358235063,1744861841159,-793.45,0.00051241,30]
[358235064,1744861841168,-151.15,0.0005128,30]
[358235065,1744861841178,-150.0,0.00051296,30]
[358235066,1744861841188,-349.81,0.00051296,30]
[358235067,1744861841197,-160.65,0.00051296,30]
[358235068,1744861841207,-447.95,0.00051296,30]
[358235069,1744861841216,-150.0,0.00051296,30]
[358235070,1744861841225,-349.81,0.00051296,30]
[358235071,1744861841234,-321.3,0.00051296,30]
[358235072,1744861841243,-150.0,0.00051296,30]
[358235073,1744861841252,-150.0,0.00051296,30]
[358235074,1744861841261,-349.81,0.00051296,30]
[358235075,1744861841274,-350.0,0.000514,120]
[358235076,1744861841284,-150.0,0.00051401,7]
[358235077,1744861841294,-2110.0,0.00051424,30]
[358235078,1744861841304,-447.95,0.00051578,30]
[358235079,1744861841313,-150.0,0.00051578,30]
[358235080,1744861841322,-300.0,0.000516,18]
[358235081,1744861841331,-150.0,0.00051613,7]
[358235082,1744861841340,-150.0,0.00051625,7]
[358235083,1744861841350,-150.0,0.00051628,7]
[358235084,1744861841359,-700.0,0.000517,18]
[358235085,1744861841367,-150.0,0.00051745,7]
[358235086,1744861841377,-400.0,0.000518,60]
[358235087,1744861841386,-1100.0,0.000518,18]
[358235088,1744861841394,-150.0,0.00051811,7]
[358235089,1744861841404,-30.60170707,0.00051828,30]
[358235099,1744861844408,-119.39829293,0.00051828,30]
[358235100,1744861844431,-150.0,0.00051828,30]
[358235101,1744861844455,-166.885245,0.0005184,120]
[358235102,1744861844478,-150.0,0.00051851,7]
[358235103,1744861844502,-150.0,0.00051854,7]
[358235104,1744861844523,-78.70627101,0.000519,18]
[358235113,1744861846139,-1421.29372899,0.000519,18]
[358235114,1744861846148,-150.0,0.00051902,7]
[358235115,1744861846158,-150.0,0.00051909,7]
[358235116,1744861846169,-150.0,0.00051909,7]
[358235117,1744861846178,-2110.0,0.00051924,30]
[358235118,1744861846187,-2361.3277,0.00051944,2]
[358235119,1744861846196,-1000.0,0.00051944,2]
[358235121,1744861846434,-3587.70099964,0.00051945,15]
[358235122,1744861846444,-1000.0,0.00051945,2]
[358235123,1744861846454,-153.0,0.00051947,60]
[358235125,1744861846463,-153.0,0.00051947,60]
[358235126,1744861846472,-153.0,0.00051947,60]
[358235127,1744861846482,-153.0,0.00051947,60]
[358235128,1744861846491,-153.0,0.00051947,60]
[358235129,1744861846500,-153.0,0.00051947,60]
[358235130,1744861846509,-153.0,0.00051947,60]
[358235131,1744861846518,-153.0,0.00051947,60]
[358235132,1744861846528,-153.0,0.00051947,60]
[358235133,1744861846537,-153.0,0.00051947,60]
[358235134,1744861846547,-153.0,0.00051947,60]
[358235135,1744861846560,-2500.0,0.00051954,2]
[358235136,1744861846578,-1812.17895138,0.00051954,24]
[358235137,1744861846599,-169.79473222,0.00051954,28]
[358235138,1744861846621,-2664.29486988,0.00051954,15]
[358235139,1744861846642,-500.0,0.00051974,2]
[358235140,1744861846665,-613.41610523,0.00051974,2]
[358235141,1744861846688,-1510.248,0.00051981,94]
[358235142,1744861846710,-793.45,0.00051988,30]
[358235143,1744861846734,-350.0,0.00052,120]
[358235144,1744861846756,-1000.0,0.00052,120]
[358235145,1744861846777,-36918.8466771,0.00052044,4]
[358235146,1744861846814,-150.0,0.00050957,7]
[358235147,1744861846835,-1434.58455959,0.00052044,4]
[358235148,1744861846862,-1086.1368,0.00052044,4]
[358235149,1744861846908,-2767.54239151,0.00052044,4]
[358235150,1744861874973,250.0,0.00017,2]
[358235151,1744861876063,300.0,0.00019,2]
[358235159,1744862762686,-250.0,0.00021,2]
[358235161,1744862843114,-100.0,0.00021,2]
[358235162,1744862843137,-400.0,0.00023,2]
[358235163,1744862843160,-250.0,0.000231,2]
[358235164,1744862843182,-377.19,0.00024932,2]
[358235165,1744862843203,-450.0,0.00025,2]
[358235166,1744862843224,-166.13509619,0.000269,2]
[358235167,1744862850212,-44.77060234,0.000269,2]
[358235168,1744862850235,-500.0,0.00027,2]
[358235169,1744862850258,-26.76261474,0.000289,2]
[358235170,1744862965095,-500.26902482,0.00029,2]
[358235171,1744863032055,-49.73097518,0.00029,2]
[358235172,1744863032065,-377.19,0.00030829,2]
[358235173,1744863032075,-600.0,0.00031,2]
[358235174,1744863032084,-185.65,0.00032877,30]
[358235175,1744863032093,-153.82,0.000335,2]
[358235176,1744863032103,-153.1,0.000335,31]
[358235177,1744863032112,-377.19,0.00036727,2]
[358235178,1744863032122,-159.83299312,0.000379,2]
[358235179,1744863032132,-517.56707359,0.00038,120]
[358235180,1744863032141,-517.56707359,0.0004,120]
[358235181,1744863032150,-153.1,0.000408,31]
[358235182,1744863032160,-153.1,0.000408,31]
[358235183,1744863032170,-402.0468,0.00040888,7]
[358235184,1744863032179,-900.0,0.00042,15]
[358235185,1744863032189,-377.19,0.00042624,2]
[358235186,1744863032198,-185.65,0.00042677,30]
[358235187,1744863032207,-1035.13414717,0.00043,120]
[358235188,1744863032217,-159.8329931,0.00043033,2]
[358235189,1744863032226,-3618.4218,0.00043888,30]
[358235190,1744863032237,-299.47362591,0.00044141,30]
[358235191,1744863032246,-300.0,0.00044146,5]
[358235192,1744863032256,-198.0,0.00044147,30]
[358235193,1744863032266,-151.0,0.00044147,120]
[358235194,1744863032276,-258.73561997,0.00044147,30]
[358235195,1744863032286,-2000.0,0.00044147,120]
[358235196,1744863032295,-368.0,0.00044147,31]
[358235197,1744863032305,-368.0,0.00044147,31]
[358235198,1744863032315,-369.0,0.00044147,31]
[358235199,1744863032325,-368.0,0.00044147,31]
[358235200,1744863032335,-177.3,0.00044147,30]
[358235201,1744863032345,-517.56707359,0.00044147,120]
[358235202,1744863032355,-358.90098403,0.00044147,60]
[358235203,1744863032365,-374.35137649,0.00044147,2]
[358235204,1744863032375,-386.88122421,0.00044147,120]
[358235206,1744863032385,-160.0,0.00044147,2]
[358235207,1744863032395,-150.0,0.00044336,30]
[358235208,1744863032404,-550.0,0.00044336,4]
[358235209,1744863032413,-18379.46337005,0.00045,5]
[358235211,1744863032433,-1620.53662995,0.00045,5]
[358235212,1744863032443,-1293.91768397,0.00046,120]
[358235213,1744863032452,-232.44,0.00046,120]
[358235214,1744863032461,-287.93,0.00046,120]
[358235215,1744863032471,-1492.14,0.00046,120]
[358235216,1744863032480,-229.26,0.00046,120]
[358235218,1744863032490,-1674.61,0.00046,120]
[358235220,1744863032499,-795.99,0.00046349,2]
[358235222,1744863032509,-152.0,0.00047038,3]
[358235224,1744863032518,-428.9,0.0004733,120]
[358235226,1744863032528,-150.32,0.00047719,2]
[358235227,1744863032537,-3382.21189664,0.0004799,2]
[358235228,1744863032547,-1293.91768395,0.00048,120]
[358235229,1744863032557,-153.1,0.000481,45]
[358235230,1744863032566,-153.1,0.000481,45]
[358235231,1744863032575,-189.48,0.00048266,2]
[358235232,1744863032584,-250.0,0.00048266,120]
[358235233,1744863032594,-696.11,0.00048266,2]
[358235234,1744863032603,-151.82,0.00048266,120]
[358235235,1744863032613,-507.24,0.00048266,2]
[358235236,1744863032623,-2512.48,0.00048266,2]
[358235237,1744863032632,-1000.0,0.00048266,2]
[358235238,1744863032642,-377.19,0.00048522,2]
[358235239,1744863032651,-502.61577573,0.000486,120]
[358235240,1744863032660,-795.99,0.00048612,2]
[358235241,1744863032669,-500.0,0.00048795,2]
[358235242,1744863032679,-150.0,0.00048822,7]
[358235243,1744863032690,-23900.0,0.00048864,2]
[358235244,1744863032700,-176.92,0.0004899,2]
[358235245,1744863032710,-2000.0,0.00049,2]
[358235246,1744863032719,-188.0,0.00049,14]
[358235247,1744863032729,-188.0,0.00049,31]